Cogmind - Beta 14 @@@ ROGUE MODE // 2025.03.30 @ 23:08:12 Player: shockman27 Result: Self-destructed Performance ------------- Evolutions (0) 0 Regions Visited (4) 800 Robots Destroyed (29) 145 Value Destroyed (474) 474 Prototype IDs (27) 540 Alien Tech Used (0) 0 Bonus (314) 314 TOTAL SCORE: 2273 Bonus ------- Follower Combat Kills 14 Aligned with FarCom 300 Cogmind --------- Core Integrity 32/250 Matter 290/300 Energy 125/125 System Corruption 0% Temperature Cool (0) Movement Treading (160) Location -9/Mines Parts ------- > --- POWER (1) -------- Light Ion Engine > --- PROPULSION (2) --- Light Treads Light Treads > --- UTILITY (2) ------ Heat Sink Large Storage Unit > --- WEAPON (2) ------- Beam Cannon Mining Laser > --- INVENTORY (15) --- Light Ion Engine Light Treads Light Treads Weight Redist. System Armor Integrity Analyzer Cloak of Protection Light Armor Plating Beam Cannon Assault Rifle Peak State ------------ > --- POWER ------------ Light Ion Engine > --- PROPULSION ------- Light Treads Light Treads > --- UTILITY ---------- Heat Sink Large Storage Unit > --- WEAPON ----------- Beam Cannon Beam Cannon > --- INVENTORY -------- Light Ion Engine Light Treads Light Treads Weight Redist. System Armor Integrity Analyzer Cloak of Protection Light Armor Plating Assault Rifle Mining Laser [Rating: 9] Favorites ----------- Power Light Ion Engine Engine Light Ion Engine Propulsion Light Treads Treads Light Treads Utility Heat Sink Device Heat Sink Storage Small Storage Unit Weapon Beam Cannon Energy Gun Medium Laser Energy Cannon Beam Cannon Ballistic Gun Assault Rifle Special Weapon Mining Laser Build | -11 -10 -10 -10 -9 ------- Run | Yrd Mat Min Exi Min Slots Evolved . | . . . . . Power . | . . . . . Propulsion . | . . . . . Utility . | . . . . . Weapon . | . . . . . Parts Attached 21 | 7 8 4 1 1 Power 3 | 1 1 1 . . Engine 3 | 1 1 1 . . Core . | . . . . . Reactor . | . . . . . Propulsion 3 | 2 1 . . . Treads 3 | 2 1 . . . Leg . | . . . . . Wheel . | . . . . . Hover . | . . . . . Flight . | . . . . . Utility 6 | 2 3 . 1 . Device 2 | 1 1 . . . Storage 4 | 1 2 . 1 . Processor . | . . . . . Hackware . | . . . . . Protection . | . . . . . Artifact . | . . . . . Weapon 9 | 2 3 3 . 1 Energy Gun 1 | 1 . . . . Energy Cannon 4 | . 2 2 . . Ballistic Gun 1 | 1 . . . . Ballistic Cannon . | . . . . . Launcher . | . . . . . Special Weapon 3 | . 1 1 . 1 Impact Weapon . | . . . . . Slashing Weapon . | . . . . . Piercing Weapon . | . . . . . Special Melee Weapon . | . . . . . Unidentified Prototypes . | . . . . . Parts Lost 1 | . . 1 . . Power 1 | . . 1 . . Propulsion . | . . . . . Utility . | . . . . . Weapon . | . . . . . Highest Loss Streak 1 | . . 1 . . To Critical Strikes . | . . . . . Average Slot Usage (%) 99 | . 99 100 100 100 Engine 14 | . 14 14 14 14 Treads 27 | . 27 28 28 28 Device 14 | . 14 14 14 14 Storage 14 | . 14 14 14 14 Energy Gun 2 | . 5 . . . Energy Cannon 18 | . 14 26 28 16 Ballistic Gun 2 | . 5 . . . Special Weapon 5 | . 3 1 . 11 Peak Build Rating 9 | 7 7 8 9 9 Average Rating 7 | 5 6 7 8 9 On Entrance 6 | . 7 7 8 9 Naked Turns . | . . . . . Heaviest Build 30 | 13 17 17 30 30 Greatest Support 40 | 40 40 40 40 40 Greatest Overweight (x) . | . . . . . Average Overweight (x) . | . . . . . Largest Inventory Capacity 25 | 8 25 8 15 15 Average Capacity 10 | 7 8 8 11 15 Most Carried 9 | 4 8 8 9 9 Average Carried 7 | 2 6 7 8 9 Final Capacity 15 | 8 8 8 15 15 Final Carried 9 | 4 8 8 9 9 Class Distribution -------------------- 100% | Mutant Dominant Class ---------------- Mutant | -10/Materials Mutant | -10/Mines Mutant | -10/Exiles Mutant | -9/Mines Resources | -11 -10 -10 -10 -9 ----------- Run | Yrd Mat Min Exi Min Matter Collected 521 | 291 185 35 . 10 Remotely . | . . . . . Salvage Created 944 | 129 763 52 . . Parts 53 | 9 40 4 . . Haulers Intercepted 2 | . 2 . . . Recyclers Shooed 3 | . 3 . . . Parts Field Recycled . | . . . . . Retrieved Matter . | . . . . . Parts Self-Destructed . | . . . . . Prevented . | . . . . . Kills | -11 -10 -10 -10 -9 ------- Run | Yrd Mat Min Exi Min Combat Hostiles Destroyed 16 | . 12 4 . . Guns 6 | . 6 . . . Cannons 9 | . 6 3 . . AOE 1 | . . 1 . . Classes Destroyed 11 | 2 7 2 . . Builder 1 | . 1 . . . Tunneler 2 | 2 . . . . Hauler 2 | . 2 . . . Recycler 4 | 1 3 . . . Mechanic 1 | . 1 . . . Operator 1 | . 1 . . . Watcher 3 | . 3 . . . Swarmer 8 | . 6 2 . . Grunt 6 | . 6 . . . Demolisher 1 | . . 1 . . Assembled 1 | . . 1 . . Best Kill Streak 4 | 3 4 2 . . Combat Bots Only 3 | . 3 2 . . Max Kills in Single Turn 2 | 2 1 1 . . Gunslinging . | . . . . . Exploded 1 | . . 1 . . Melee . | . . . . . Uniques/NPCs Destroyed . | . . . . . Combat | -11 -10 -10 -10 -9 -------- Run | Yrd Mat Min Exi Min Hostile Shots Fired 69 | . 52 17 . . Missed 24 | . 19 5 . . Damage Taken 667 | . 336 331 . . Core 218 | . 66 152 . . Absorbed by Shields . | . . . . . Regen/Repaired (Parts) 77 | . 77 . . . Core Remaining (%) 100 | 100 . . . . Volleys Fired 89 | 7 69 8 . 5 Largest 2 | 2 2 2 . 1 Hottest 120 | 70 120 120 . 100 Shots Fired 165 | 14 131 15 . 5 Gun 84 | 14 70 . . . Cannon 68 | . 54 14 . . Launcher . | . . . . . Special 13 | . 7 1 . 5 Kinetic 42 | 7 35 . . . Thermal 123 | 7 96 15 . 5 Explosive . | . . . . . Electromagnetic . | . . . . . Robot Hit Streak 15 | 3 15 3 . . Robot Miss Streak 4 | 2 4 1 . . Penetration Max . | . . . . . Secondary Targets . | . . . . . Shots Hit Robots 92 | 7 76 9 . . Core Hits 41 | 4 33 4 . . Critical Kills . | . . . . . Critical Parts Destroyed . | . . . . . Critical Strikes 5 | . 5 . . . Burn 5 | . 5 . . . Melee Attacks . | . . . . . Impact . | . . . . . Slashing . | . . . . . Piercing . | . . . . . Sneak Attacks . | . . . . . Combat Hostiles . | . . . . . Follow-up Attacks . | . . . . . Damage Inflicted 1449 | 96 1175 178 . . Guns 700 | 96 604 . . . Cannons 749 | . 571 178 . . Explosions . | . . . . . Melee . | . . . . . Ramming . | . . . . . Kinetic 343 | 59 284 . . . Thermal 1106 | 37 891 178 . . Explosive . | . . . . . Electromagnetic . | . . . . . Impact . | . . . . . Slashing . | . . . . . Piercing . | . . . . . Highest Corruption . | . . . . . Average Corruption . | . . . . . Corruption Purged . | . . . . . Corruption Blocked . | . . . . . Overload Shots . | . . . . . Overflow Damage 19 | . 19 . . . Projectiles 19 | . 19 . . . Explosions . | . . . . . Melee . | . . . . . Knockbacks . | . . . . . Impact . | . . . . . Kinetic . | . . . . . Secondary . | . . . . . Self-Inflicted Damage . | . . . . . Shots . | . . . . . Rammed . | . . . . . Targets Rammed . | . . . . . Kicked . | . . . . . Crushed . | . . . . . Highest Temperature 279 | 45 279 90 . . Average Temperature 47 | 19 50 41 . . Received Heat Transfer 117 | . 117 . . . Siege Activations . | . . . . . Robots Corrupted . | . . . . . Combat Hostiles . | . . . . . Parts Fried . | . . . . . Impact Corruptions . | . . . . . Robots Melted . | . . . . . Combat Hostiles . | . . . . . Parts Melted 5 | . 5 . . . Heat Transferred 2960 | 111 2479 370 . . Parts Sabotaged . | . . . . . Parts Stolen . | . . . . . Parts Stripped . | . . . . . Power Chain Reactions . | . . . . . Alert | -11 -10 -10 -10 -9 ------- Run | Yrd Mat Min Exi Min Peak Influence 225 | 15 225 107 . 1 Initial 9 | . 9 3 . . Average 39 | 6 72 57 . . Maximum Alert Level 1 | . 1 . . . Low Security (%) 99 | 100 99 100 . 100 Level 1 . | . . . . . Level 2 . | . . . . . Level 3 . | . . . . . Level 4 . | . . . . . Level 5 . | . . . . . High Security . | . . . . . Max Security . | . . . . . Squads Dispatched 2 | . 2 . . . Investigation 1 | . 1 . . . Extermination . | . . . . . Reinforcement 1 | . 1 . . . Assault . | . . . . . Garrison . | . . . . . Intercept . | . . . . . Searches Triggered . | . . . . . Construction Impeded . | . . . . . Haulers Reinforced . | . . . . . Active Scanning Responses . | . . . . . Cargo Convoy Interrupts . | . . . . . Stealth | -11 -10 -10 -10 -9 --------- Run | Yrd Mat Min Exi Min Distress Signals 1 | . 1 . . . Communications Jammed . | . . . . . Distress Signals . | . . . . . Times Spotted 31 | . 22 9 . . Peak Tracking Total 3 | . 3 3 . . Tactical Retreats 3 | . 2 1 . . Traps | -11 -10 -10 -10 -9 ------- Run | Yrd Mat Min Exi Min Traps Triggered . | . . . . . Indirectly . | . . . . . Trap Hack Attempts . | . . . . . Triggered . | . . . . . Disarmed . | . . . . . Reprogrammed . | . . . . . Reused . | . . . . . Traps Extracted . | . . . . . Installed . | . . . . . Triggered . | . . . . . Machines | -11 -10 -10 -10 -9 ---------- Run | Yrd Mat Min Exi Min Machines Disabled . | . . . . . Max in Single Turn . | . . . . . Machines Repaired . | . . . . . Machines Dismantled . | . . . . . Machines Sabotaged . | . . . . . Overloaded Fab Kills . | . . . . . Hacking | -11 -10 -10 -10 -9 --------- Run | Yrd Mat Min Exi Min Machines Accessed 13 | . 10 1 2 . Terminals 8 | . 8 . . . Fabricators . | . . . . . Repair Stations 1 | . 1 . . . Recycling Units 1 | . 1 . . . Scanalyzers . | . . . . . Garrison Access . | . . . . . Total Hacks 43 | . 40 1 2 . Successful 23 | . 20 1 2 . Failed 20 | . 20 . . . Catastrophic 5 | . 5 . . . Database Lockouts . | . . . . . Manual 17 | . 16 . 1 . Terminals 35 | . 35 . . . Fabricators . | . . . . . Repair Stations 3 | . 3 . . . Recycling Units 2 | . 2 . . . Scanalyzers . | . . . . . Garrison Access . | . . . . . Terminal Hacks 19 | . 16 1 2 . Record 2 | . 1 . 1 . Robot Analysis 4 | . 4 . . . Prototype ID Bank 4 | . 4 . . . Open Door 1 | . . 1 . . Locate Traps 2 | . 2 . . . Surveillance Status 1 | . 1 . . . Transport Status 2 | . 2 . . . Hauler Manifests 1 | . 1 . . . Zone Layout 1 | . 1 . . . Derelict Proto ID Bank 1 | . . . 1 . Fabricator Hacks . | . . . . . Repair Station Hacks 2 | . 2 . . . Scan Component 1 | . 1 . . . Repair 1 | . 1 . . . Recycling Unit Hacks 2 | . 2 . . . Report Inventory 1 | . 1 . . . Retrieve Components 1 | . 1 . . . Scanalyzer . | . . . . . Garrison Access Hacks . | . . . . . Unauthorized Hacks . | . . . . . Terminals . | . . . . . Fabricators . | . . . . . Repair Stations . | . . . . . Recycling Units . | . . . . . Scanalyzers . | . . . . . Garrison Access . | . . . . . Data Cores Recovered . | . . . . . Used . | . . . . . Hacking Detections 9 | . 9 . . . Full Trace Events 2 | . 2 . . . Feedback Events . | . . . . . Feedback Blocked . | . . . . . Robot Schematics Acquired . | . . . . . Robots Built . | . . . . . Authchips . | . . . . . Time . | . . . . . Total Robot Build Rating . | . . . . . Part Schematics Acquired . | . . . . . Parts Built . | . . . . . Authchips . | . . . . . Time . | . . . . . Total Part Build Rating . | . . . . . Parts Repaired 1 | . 1 . . . Time 26 | . 26 . . . Parts Recycled . | . . . . . Recycled Matter . | . . . . . Retrieved Matter . | . . . . . Retrieved Components 10 | . 10 . . . Parts Scanalyzed . | . . . . . Part Schematics Acquired . | . . . . . Parts Damaged . | . . . . . Bothacking | -11 -10 -10 -10 -9 ------------ Run | Yrd Mat Min Exi Min Used RIF Installer . | . . . . . Robots Hacked . | . . . . . Non-combat . | . . . . . Combat . | . . . . . Robot Hacks Applied . | . . . . . Relay Couplers Released . | . . . . . Fabnet Peak Effective % . | . . . . . Robots Rewired . | . . . . . Allies Hacked . | . . . . . Hacks Repelled . | . . . . . Allies | -11 -10 -10 -10 -9 -------- Run | Yrd Mat Min Exi Min Total Allies 3 | . . 3 . . Largest Group 3 | . . 3 . . Highest-Rated Group 40 | . . 40 . . Highest-Rated Ally 16 | . . 16 . . Total Orders . | . . . . . Ally Attacks 19 | . . 19 . . Total Damage 186 | . . 186 . . Kills 2 | . . 2 . . Allies Corrupted . | . . . . . Allies Melted . | . . . . . Intel | -11 -10 -10 -10 -9 ------- Run | Yrd Mat Min Exi Min Robot Analysis Total 4 | . 4 . . . Derelict Logs Recovered 2 | . . 1 . 1 Drone Launches . | . . . . . Drone Recoveries . | . . . . . Exploration | -11 -10 -10 -10 -9 ------------- Run | Yrd Mat Min Exi Min Turns Passed 5601 | 137 2137 572 758 1997 Spaces Moved 2066 | 69 1071 316 472 138 Core 8 | 8 . . . . Treads 2058 | 61 1071 316 472 138 Legs . | . . . . . Wheels . | . . . . . Hover . | . . . . . Flight . | . . . . . Fastest Speed 50 | 50 160 160 160 160 Average Speed 159 | 147 160 160 160 160 Slowest Speed 160 | 160 160 160 160 160 Overloaded Moves . | . . . . . Propulsion Burnouts . | . . . . . Robots Hopped . | . . . . . Cave-ins Triggered . | . . . . . Exploration Rate (%) 49 | 5 99 48 61 33 Regions Visited 4 Branch Regions 3 Pre-discovered Areas 1 | . . . 1 . Known Exits Taken . | . . . . . Unknown Exits Taken 4 | 1 1 1 1 . Scrap Searched 2 | . . . . 2 Spaces Dug 9 | . 7 1 . 1 Terrain Destroyed 9 | . 7 1 . 1 Melee . | . . . . . Projectile 9 | . 7 1 . 1 AOE . | . . . . . Terrain Rammed . | . . . . . Walls Destroyed . | . . . . . Machines Disabled . | . . . . . Actions | -11 -10 -10 -10 -9 --------- Run | Yrd Mat Min Exi Min Total 4175 | 87 1350 364 476 1898 Wait 1976 | 1 185 36 . 1754 Move 2062 | 68 1070 315 471 138 Hop . | . . . . . Pick Up 17 | 4 10 1 2 . Fast Attach 8 | 7 1 . . . Attach 1 | . . 1 . . Detach . | . . . . . Swap 12 | . 7 3 1 1 Drop 10 | . 8 . 2 . Fire 89 | 7 69 8 . 5 Melee . | . . . . . Ram . | . . . . . Kick . | . . . . . Crush . | . . . . . Escape Stasis . | . . . . . Rewire . | . . . . . Trap . | . . . . . Miscellaneous . | . . . . . Route ------- -11/Scrapyard -10/Materials (discovered 5 exits: *Mat x3 / *Min x2) -10/Mines (discovered 3 exits: *Mat x2 / *Exi) -10/Exiles -9/Mines History --------- Turn | Location | Event 55 | -11/Scrapyard | Discovered new exit (range 16) 138 | -11/Scrapyard | Entered Materials 310 | -10/Materials | Build established: Mutant 705 | -10/Materials | Discovered new exit (range 11) 1106 | -10/Materials | Discovered new exit (range 13) 1339 | -10/Materials | Discovered new exit (range 16) 1555 | -10/Materials | Discovered new exit (range 4) 1850 | -10/Materials | Discovered new exit (range 4) 2181 | -10/Materials | Repaired Lgt. Treads 2275 | -10/Materials | Entered Mines 2307 | -10/Mines | Assisted by bots powering up and referring to "LRC-V3" 2324 | -10/Mines | Discovered new exit (range 14) 2498 | -10/Mines | Found the Drone Emporium 2626 | -10/Mines | Identified exit to Materials 2629 | -10/Mines | Assembled infested the area 2634 | -10/Mines | Assisted by a Guerilla fighting off Assembled 2688 | -10/Mines | Lost 4 allies 2704 | -10/Mines | Core integrity fell below 50% 2785 | -10/Mines | Core integrity fell below 20% 2836 | -10/Mines | Deemed a non-threat by the Exiles lab entrance 2837 | -10/Mines | Discovered new exit (range 5) 2847 | -10/Mines | Entered Exiles 2900 | -10/Exiles | Met 8R-AWN 2940 | -10/Exiles | Met EX-HEX 2996 | -10/Exiles | Met EX-BIN 3027 | -10/Exiles | Aligned with FarCom system 3028 | -10/Exiles | Given EX-Vault access code 3076 | -10/Exiles | Opened EX-Vault 3088 | -10/Exiles | Found Cloak of Protection 3121 | -10/Exiles | Warned to stay clear of 0b10 Research branches 3175 | -10/Exiles | Met EX-DEC 3199 | -10/Exiles | Learned location of Zion (-7) 3576 | -10/Exiles | Discovered new exit (range 14) 3605 | -10/Exiles | Left Exiles lab with Cloak of Protection 3605 | -10/Exiles | Entered Mines 3616 | -9/Mines | Met a Derelict bent on vengeance 3781 | -9/Mines | Excavation squad dispatched 3781 | -9/Mines | A large section of the Mines collapsed 3944 | -9/Mines | Learned Materials security intel 4031 | -9/Mines | Excavation squad dispatched 4281 | -9/Mines | Excavation squad dispatched 4531 | -9/Mines | Excavation squad dispatched 4781 | -9/Mines | Excavation squad dispatched 5031 | -9/Mines | Excavation squad dispatched 5281 | -9/Mines | Excavation squad dispatched 5531 | -9/Mines | Excavation squad dispatched 5602 | -9/Mines | Self-destructed Last Messages --------------- 03660_ Found 46 Matter. 03661_ Acquired 10 matter. 03751_ Searching scrap... 03751_ Found Hvy. EM Pulse Gun. 03751_ Found Visual Processing Unit. 03751_ Found Imp. Hover Unit. 03751_ Found 33 Matter. 03781_ ALERT: Suspicious cave-in, suspected derelict activity in mines. Dispatching escorted excavation squad. 03944_ Acquired derelict log, extracted data. Data stored: Materials security intel. 03955_ A derelict emerges from the shadows: "What are you doing alone down here?" 03957_ HX-5CU(g): "Well, at least you look like you can take care of yourself!" 03959_ HX-5CU(g): "I have the funny feeling that things are about to get a lot worse around here, see you around!" 03959_ HX-5CU(g) slips back into the shadows. 04031_ ALERT: Derelict activity in mines confirmed. Dispatching additional escorted excavation squad. Map ----- +----------------------------------------------------+ | | | | | | | | | | | | | | | | | | | | | | | | | | | | | | | | | | | ??????????????????????????? | | ??????????????????????????? | | ??????????????????????????? | | ??????????????????????????? | | ??????????????###########?? | | ??????????????# ## ##? | | ??????????????# #? | | ??????????????# # ## | | ##????????????# ## #@# | | ##???????????# #### #### | | ##??????????# #??####??? | | #??????????# #????????? | | #??????????# #????????? | | #??????????# #????????? | | ## #??????????# ##???????? | | ?# ###???????## ##??????? | | ?# #???????# #??????? | | ?## #???????## #??????? | | ??# #######??###g ##?????? | | ??# #????# g#?????? | | ##### #????#gg##?????? | | ### #???#!#######g##?????? | | ??# #???#%=[ g #?????? | | ?? #???#########g g#????? | | ?# #???????????#gg #???? | | ?## #???????????# g #???? | | ??# #??????????? #???? | | ??# ??????????? ???? | | ?? ??????????### ??? | | ?? ????????????## #?? | | ?? ??????????????# ##?? | | ??" ???????????????###??? | | ??" ????????????????????? | +----------------------------------------------------+ Best States ------------- Heat Dissipation 35 Energy Generation 10 Energy Capacity 250 Matter Stores 300 Matter Capacity 300 Sight Range 16 Terrain Scan Density 10 Evasion (%) 40 Recoil Reduction 2 Item Schematics ----------------- None Robot Schematics ------------------ None Fabricated ------------ Nothing Alien Tech Used ----------------- None Achievements -------------- None Challenges ------------ None Game ------ Seed EnergyPiercingCorpse Manual? 0 Play Time 00:26:53 Cumulative 33.2 hours Start 2025.03.30 @ 22:33:05 End 2025.03.30 @ 23:08:12 Sessions 1 Manual Loads 0 Difficulty Rogue Special Mode None Game No. 24 Rogue 20 Adventurer 4 Explorer 0 Win Type - Total 0 Types 0/0/0/0/0/0/0/0/0 Lore% 10 Gallery% 19 Achievement% 19 Wizard Run 0 Options --------- Layout 0 ASCII 0 Keyboard 1 Movement Vi Keybinds 0 Fullscreen 1 Font 24/Crisp Map View 76x50 Zoom Use 0% Tactical HUD 1 Map Filters NONE Filters NONE Steam 1 RUN: f867488b-5235-4831-b9cc-f6bf66717cda